fUST/lending_fUST_20260118
["ID","MTS","AMOUNT","RATE_DAILY","PERIOD"]
[402516657,1768692655436,-500.0,0.00016712,3]
[402516658,1768692655446,-500.0,0.00016712,3]
[402516659,1768692655456,-860.37,0.00016712,3]
[402516660,1768692655465,-500.0,0.00016712,3]
[402516661,1768692655475,-500.0,0.00016712,3]
[402516662,1768692655485,-1010.57,0.00016712,3]
[402516663,1768692655494,-500.0,0.00016712,3]
[402516664,1768692655504,-699.5,0.00016712,3]
[402516665,1768692655514,-500.0,0.00016712,3]
[402516666,1768692655524,-500.0,0.00016712,3]
[402516667,1768692655534,-500.0,0.00016712,3]
[402516668,1768692655543,-500.0,0.00016712,3]
[402516669,1768692655553,-621.95,0.00016712,3]
[402516670,1768692655563,-500.0,0.00016712,3]
[402516671,1768692655573,-500.0,0.00016712,3]
[402516672,1768692655582,-660.05,0.00016712,3]
[402516673,1768692655592,-500.0,0.00016712,3]
[402516674,1768692655602,-684.1,0.00016712,3]
[402516675,1768692655611,-500.0,0.00016712,3]
[402516676,1768692655621,-268.212225,0.00016712,2]
[402516677,1768692655631,-500.0,0.00016712,3]
[402516678,1768692655640,-268.212225,0.00016712,2]
[402516679,1768692655649,-268.212225,0.00016712,2]
[402516680,1768692655659,-500.0,0.00016712,3]
[402516681,1768692655669,-500.0,0.00016712,3]
[402516682,1768692655678,-500.0,0.00016712,3]
[402516683,1768692655688,-268.212225,0.00016712,2]
[402516684,1768692655697,-1097.01,0.00016712,3]
[402516685,1768692655708,-1168.21,0.00016712,3]
[402516686,1768692655718,-746.42,0.00016712,3]
[402516687,1768692655727,-500.0,0.00016712,3]
[402516688,1768692655737,-500.0,0.00016712,3]
[402516689,1768692655747,-500.0,0.00016712,3]
[402516690,1768692655757,-524.15,0.00016712,3]
[402516691,1768692655767,-500.0,0.00016712,3]
[402516692,1768692655776,-500.0,0.00016712,3]
[402516693,1768692655787,-1115.01,0.00016712,3]
[402516694,1768692655797,-500.0,0.00016712,3]
[402516695,1768692655807,-500.0,0.00016712,3]
[402516696,1768692655818,-500.0,0.00016712,3]
[402516697,1768692655828,-836.94,0.00016712,3]
[402516698,1768692655838,-703.62,0.00016712,3]
[402516699,1768692655848,-758.69,0.00016712,3]
[402516700,1768692655859,-500.0,0.00016712,3]
[402516701,1768692655869,-907.98,0.00016712,3]
[402516702,1768692655879,-1166.83,0.00016712,3]
[402516703,1768692655889,-855.97,0.00016712,3]
[402516704,1768692655899,-500.0,0.00016712,3]
[402516705,1768692655909,-661.93,0.00016712,3]
[402516706,1768692655920,-500.0,0.00016712,3]
[402516707,1768692655930,-1120.09,0.00016712,3]
[402516708,1768692655939,-611.2,0.00016712,3]
[402516709,1768692655949,-618.85,0.00016712,3]
[402516710,1768692655959,-676.16,0.00016712,3]
[402516711,1768692655968,-500.0,0.00016712,3]
[402516712,1768692655978,-612.26,0.00016712,3]
[402516713,1768692655987,-500.0,0.00016712,3]
[402516714,1768692655996,-500.0,0.00016712,3]
[402516715,1768692656006,-936.37,0.00016712,3]
[402516716,1768692656016,-334.99095831,0.00016712,3]
[402516717,1768692656610,-309.41904169,0.00016712,3]
[402516718,1768692656620,-500.0,0.00016712,3]
[402516719,1768692656629,-551.57,0.00016712,3]
[402516720,1768692656639,-570.84,0.00016712,3]
[402516721,1768692656649,-500.0,0.00016712,3]
[402516722,1768692656658,-500.0,0.00016712,3]
[402516723,1768692656668,-782.36,0.00016712,3]
[402516724,1768692656678,-500.0,0.00016712,3]
[402516725,1768692656687,-500.0,0.00016712,3]
[402516726,1768692656697,-500.0,0.00016712,3]
[402516727,1768692656707,-500.0,0.00016712,3]
[402516728,1768692656717,-500.0,0.00016712,3]
[402516729,1768692656727,-781.75,0.00016712,3]
[402516730,1768692656736,-500.0,0.00016712,3]
[402516731,1768692656746,-500.0,0.00016712,3]
[402516732,1768692656755,-500.0,0.00016712,3]
[402516733,1768692656765,-1000.0,0.00016712,2]
[402516734,1768692656774,-500.0,0.00016712,3]
[402516735,1768692656783,-500.0,0.00016712,3]
[402516736,1768692656793,-136.74135813,0.00016712,3]
[402516737,1768692656805,-363.25864187,0.00016712,3]
[402516738,1768692656815,-732.1125897,0.00016712,3]
[402516739,1768692656827,-34.6074103,0.00016712,3]
[402516740,1768692656837,-500.0,0.00016712,3]
[402516741,1768692656847,-500.0,0.00016712,3]
[402516742,1768692656857,-655.8,0.00016712,3]
[402516743,1768692656867,-13.04344963,0.00016712,3]
[402516744,1768692657459,-500.0,0.00016438,3]
[402516745,1768692657469,-255.6523831,0.00016438,3]
[402516746,1768692657481,-244.3476169,0.00016438,3]
[402516747,1768692657491,-486.95655037,0.00016712,3]
[402516748,1768692657501,-159.4990674,0.00016712,3]
[402516749,1768692657512,-340.5009326,0.00016712,3]
[402516750,1768692657521,-393.23593018,0.00016712,3]
[402516751,1768692657533,-528.89051107,0.00016712,3]
[402516752,1768692657545,-534.12355875,0.00016712,3]
[402516753,1768692657555,-10341.93,0.00016712,3]
[402516754,1768692657564,-500.0,0.00016712,3]
[402516755,1768692657574,-500.0,0.00016712,3]
[402516756,1768692657593,-500.0,0.00016712,3]
[402516757,1768692657607,-500.0,0.00016712,3]
[402516758,1768692657617,-500.0,0.00016712,3]
[402516759,1768692657627,-500.0,0.00016712,3]
[402516760,1768692657636,-500.0,0.00016712,3]
[402516761,1768692657645,-2540.3,0.00016712,3]
[402516762,1768692657655,-1069.67,0.00016712,3]
[402516763,1768692657664,-500.0,0.00016712,3]
[402516764,1768692657673,-500.0,0.00016712,3]
[402516765,1768692657683,-500.0,0.00016712,3]
[402516766,1768692657692,-749.66,0.00016712,3]
[402516767,1768692657702,-506.05,0.00016712,3]
[402516768,1768692657711,-500.0,0.00016712,3]
[402516769,1768692657721,-500.0,0.00016712,3]
[402516770,1768692657732,-640.7,0.00016712,3]
[402516771,1768692657743,-1166.83,0.00016712,3]
[402516772,1768692657753,-500.0,0.00016712,3]
[402516773,1768692657763,-500.0,0.00016712,3]
[402516774,1768692657773,-500.0,0.00016712,3]
[402516775,1768692657788,-500.0,0.00016712,3]
[402516776,1768692657797,-500.0,0.00016712,3]
[402516777,1768692657807,-500.0,0.00016712,3]
[402516778,1768692657818,-955.47,0.00016712,3]
[402516779,1768692657828,-846.99,0.00016712,3]
[402516780,1768692657838,-500.0,0.00016712,3]
[402516781,1768692657848,-500.0,0.00016712,3]
[402516782,1768692657858,-781.7,0.00016712,3]
[402516783,1768692657868,-826.05,0.00016712,3]
[402516784,1768692657878,-197.20286288,0.00016712,3]
[402516785,1768692657887,-981.57,0.00016712,3]
[402516786,1768692657897,-584.33,0.00016712,3]
[402516787,1768692657907,-1622.26,0.00016712,3]
[402516788,1768692657916,-500.0,0.00016712,3]
[402516789,1768692657926,-575.03830885,0.00016712,3]
[402516790,1768692657936,-1052.72,0.00016712,3]
[402516791,1768692657945,-500.0,0.00016712,3]
[402516792,1768692657955,-500.0,0.00016712,3]
[402516793,1768692657964,-2107.65,0.00016712,3]
[402516794,1768692657974,-500.0,0.00016712,3]
[402516795,1768692657984,-880.5,0.00016712,3]
[402516796,1768692657994,-500.0,0.00016712,3]
[402516797,1768692658003,-1065.24,0.00016712,3]
[402516798,1768692658013,-666.17,0.00016712,3]
[402516799,1768692658022,-500.0,0.00016712,3]
[402516800,1768692658032,-500.0,0.00016712,3]
[402516801,1768692658042,-500.0,0.00016712,3]
[402516802,1768692658051,-151.65783473,0.00016712,3]
[402516803,1768692658187,-87.26940344,0.00016712,3]
[402516804,1768692681471,168.16610265,0.00023633,120]
[402516805,1768692699185,160.0,0.000273,120]
[402516806,1768692705382,160.0,0.000273,120]
[402516807,1768692745495,-500.0,0.00012558,2]
[402516808,1768692745526,-500.0,0.00012558,2]
[402516809,1768692745562,-500.0,0.00012558,2]
[402516810,1768692745590,-500.0,0.00012558,2]
[402516811,1768692745620,-500.0,0.00012558,2]
[402516812,1768692745650,-500.0,0.00012558,2]
[402516813,1768692745680,-500.0,0.00012558,2]
[402516814,1768692745710,-500.0,0.00012558,2]
[402516815,1768692745740,-586.85799199,0.00012558,2]
[402516816,1768692745771,-326.29401602,0.00012558,2]
[402516817,1768692745963,-173.70598398,0.00012558,2]
[402516818,1768692751537,-500.0,0.00012558,2]
[402516819,1768692751571,-500.0,0.00012558,2]
[402516820,1768692751602,-500.0,0.00012558,2]
[402516821,1768692751632,-500.0,0.00012558,2]
[402516822,1768692751972,-500.0,0.00012558,2]
[402516823,1768692752003,-500.0,0.00012558,2]
[402516824,1768692752034,-500.0,0.00012558,2]
[402516825,1768692752064,-500.0,0.00012558,2]
[402516826,1768692752097,-500.0,0.00012558,2]
[402516827,1768692752127,-500.0,0.00012558,2]
[402516828,1768692752359,-0.01,0.00012558,2]
[402516829,1768692770076,160.0,0.000273,120]
[402516830,1768692774248,160.0,0.000273,120]
[402516831,1768692802663,158.0,0.000273,120]
[402516832,1768692803258,158.0,0.000273,120]
[402516835,1768692886323,605.2381,0.00027387,120]
[402516840,1768692955836,1444.0,0.00026137,120]
[402516845,1768693058857,315.2046,0.00027387,120]
[402516846,1768693066685,158.0,0.000273,120]
[402516847,1768693079845,315.2046,0.00027387,120]
[402516848,1768693095802,158.0,0.000273,120]
[402516849,1768693104818,158.0,0.000273,120]
[402516850,1768693134524,308.956,0.00027387,120]
[402516851,1768693337270,308.956,0.00027387,120]
[402516852,1768693343077,308.956,0.00027387,120]
[402516853,1768693348297,308.956,0.00027387,120]
[402516854,1768693421299,308.9118,0.00027396,120]
[402516857,1768693543287,-5000.0,0.00011473,10]
[402516858,1768693545965,0.01,0.00011358,10]
[402516859,1768693545986,4999.99,0.00011358,10]
[402516860,1768693740037,1444.0,0.00026137,120]
[402516870,1768693832763,-419.39,0.000116,2]
[402516871,1768693832774,-180.5648639,0.00011624,2]
[402516872,1768693832784,-500.0,0.00012,2]
[402516873,1768693832794,-500.0,0.00012999,2]
[402516874,1768693832805,-500.0,0.00013273,2]
[402516875,1768693832817,-500.0,0.00013273,2]
[402516876,1768693832827,-163.34818571,0.00013273,2]
[402516877,1768693832837,-300.0,0.00013598,2]
[402516878,1768693832848,-38756.45341376,0.00013599,2]
[402516879,1768693832860,-485.38007802,0.00013599,2]
[402516992,1768693838510,-168.27029236,0.00013598,2]
[402516993,1768693838520,-500.0,0.00013598,2]
[402516994,1768693838529,-500.0,0.00013598,2]
[402516995,1768693838538,-500.0,0.00013598,2]
[402516996,1768693838547,-500.0,0.00013598,2]
[402516997,1768693838556,-500.0,0.00013598,2]
[402516998,1768693838566,-28.43273014,0.00013598,2]
[402516999,1768693838698,-297.08773857,0.00013598,2]
[402517000,1768693838763,-174.47953129,0.00013598,2]
[402517001,1768693838774,-500.0,0.00013598,2]
[402517002,1768693838785,-500.0,0.00013598,2]
[402517003,1768693838795,-500.0,0.00013598,2]
[402517004,1768693838805,-500.0,0.00013598,2]
[402517005,1768693838815,-500.0,0.00013598,2]
[402517006,1768693838827,-500.0,0.00013598,2]
[402517007,1768693838838,-500.0,0.00013598,2]
[402517008,1768693838848,-500.0,0.00013598,2]
[402517009,1768693838858,-500.0,0.00013598,2]
[402517010,1768693838868,-372.5,0.00013598,2]
[402517011,1768693838878,-500.0,0.00013598,2]
[402517012,1768693838888,-500.0,0.00013598,2]
[402517013,1768693838898,-500.0,0.00013598,2]
[402517014,1768693838908,-500.0,0.00013598,2]
[402517015,1768693838917,-500.0,0.00013598,2]
[402517016,1768693838926,-500.0,0.00013598,2]
[402517017,1768693838937,-500.0,0.00013598,2]
[402517018,1768693838946,-500.0,0.00013598,2]
[402517019,1768693838956,-500.0,0.00013598,2]
[402517020,1768693838965,-500.0,0.00013598,2]
[402517021,1768693838975,-500.0,0.00013598,2]
[402517022,1768693838985,-500.0,0.00013598,2]
[402517023,1768693838994,-500.0,0.00013598,2]
[402517024,1768693839003,-500.0,0.00013598,2]
[402517025,1768693839013,-500.0,0.00013598,2]
[402517026,1768693839023,-500.0,0.00013598,2]
[402517027,1768693839032,-500.0,0.00013598,2]
[402517028,1768693839042,-499.33683216,0.00013598,2]
[402517029,1768693839052,-500.0,0.00013598,2]
[402517030,1768693839062,-500.0,0.00013598,2]
[402517031,1768693839073,-500.0,0.00013598,2]
[402517032,1768693839082,-500.0,0.00013598,2]
[402517033,1768693839091,-500.0,0.00013598,2]
[402517034,1768693839101,-500.0,0.00013598,2]
[402517035,1768693839110,-500.0,0.00013598,2]
[402517036,1768693839119,-500.0,0.00013598,2]
[402517037,1768693839129,-500.0,0.00013598,2]
[402517038,1768693839138,-500.0,0.00013598,2]
[402517039,1768693839147,-500.0,0.00013598,2]
[402517040,1768693839156,-500.0,0.00013598,2]
[402517041,1768693839166,-500.0,0.00013598,2]
[402517042,1768693839175,-500.0,0.00013598,2]
[402517043,1768693839184,-500.0,0.00013598,2]
[402517044,1768693839194,-500.0,0.00013598,2]
[402517045,1768693839203,-500.0,0.00013598,2]
[402517046,1768693839212,-500.0,0.00013598,2]
[402517047,1768693839221,-358.07814246,0.00013598,2]
[402517048,1768693839230,-500.0,0.00013598,2]
[402517049,1768693839241,-500.0,0.00013598,2]
[402517050,1768693839251,-500.0,0.00013598,2]
[402517051,1768693839260,-500.0,0.00013598,2]
[402517052,1768693839269,-500.0,0.00013598,2]
[402517053,1768693839279,-500.0,0.00013598,2]
[402517054,1768693839288,-500.0,0.00013598,2]
[402517055,1768693839297,-500.0,0.00013598,2]
[402517056,1768693839307,-500.0,0.00013598,2]
[402517057,1768693839317,-500.0,0.00013598,2]
[402517058,1768693839326,-500.0,0.00013598,2]
[402517060,1768693839336,-500.0,0.00013598,2]
[402517062,1768693839345,-500.0,0.00013598,2]
[402517064,1768693839354,-500.0,0.00013598,2]
[402517066,1768693839364,-500.0,0.00013598,2]
[402517068,1768693839373,-350.0,0.00013598,2]
[402517069,1768693839382,-500.0,0.00013598,2]
[402517071,1768693839392,-500.0,0.00013598,2]
[402517073,1768693839401,-500.0,0.00013598,2]
[402517075,1768693839411,-500.0,0.00013598,2]
[402517077,1768693839420,-500.0,0.00013598,2]
[402517079,1768693839430,-500.0,0.00013598,2]
[402517081,1768693839439,-500.0,0.00013598,2]
[402517083,1768693839449,-500.0,0.00013598,2]
[402517086,1768693839459,-500.0,0.00013598,2]
[402517088,1768693839469,-500.0,0.00013598,2]
[402517090,1768693839478,-500.0,0.00013598,2]
[402517092,1768693839492,-500.0,0.00013598,2]
[402517094,1768693839501,-500.0,0.00013598,2]
[402517095,1768693839511,-500.0,0.00013598,2]
[402517097,1768693839521,-500.0,0.00013598,2]
[402517099,1768693839531,-500.0,0.00013598,2]
[402517101,1768693839540,-500.0,0.00013598,2]
[402517103,1768693839550,-500.0,0.00013598,2]
[402517105,1768693839559,-500.0,0.00013598,2]
[402517106,1768693839571,-500.0,0.00013598,2]
[402517108,1768693839581,-500.0,0.00013598,2]
[402517109,1768693839591,-500.0,0.00013598,2]
[402517110,1768693839601,-500.0,0.00013598,2]
[402517111,1768693839611,-500.0,0.00013598,2]
[402517112,1768693839621,-500.0,0.00013598,2]
[402517113,1768693839630,-500.0,0.00013598,2]
[402517114,1768693839641,-500.0,0.00013598,2]
[402517115,1768693839650,-500.0,0.00013598,2]
[402517116,1768693839660,-500.0,0.00013598,2]
[402517117,1768693839670,-500.0,0.00013598,2]
[402517118,1768693839680,-500.0,0.00013598,2]
[402517119,1768693839690,-960758.16650822,0.00013599,2]
[402517120,1768693839700,-213.0665394,0.00013624,2]
[402517121,1768693839709,-1000.0,0.00013699,2]
[402517122,1768693839719,-194.1362209,0.00013699,2]
[402517123,1768693839728,-158.0,0.00013699,2]
[402517124,1768693839738,-158.0,0.00013699,2]
[402517125,1768693839748,-502.15537152,0.00013699,2]
[402517126,1768693839758,-161.9913003,0.00013723,2]
[402517127,1768693839768,-47270.12285009,0.00013821,2]
[402517128,1768693839777,-1000.0,0.00013821,2]
[402517129,1768693839787,-1000.0,0.00013821,2]
[402517130,1768693839797,-1000.0,0.00014,2]
[402517131,1768693839808,-74407.23900088,0.00014006,2]
[402517132,1768693839820,-1500.0,0.00014368,2]
[402517133,1768693839830,-411.0,0.00014903,2]
[402517134,1768693839839,-202.78578167,0.00014916,2]
[402517135,1768693839849,-1000.0,0.00015,2]
[402517136,1768693839860,-288.26114,0.00015068,2]
[402517137,1768693839871,-8046.6484743,0.0001529,2]
[402517138,1768693839880,-168.0,0.00015308,2]
[402517139,1768693839890,-587.44804805,0.0001554,2]
[402517140,1768693839900,-245.56821491,0.00015624,2]
[402517141,1768693839910,-2150.738,0.00015703,2]
[402517142,1768693839920,-162.380719,0.0001598,2]
[402517143,1768693839930,-168.3888056,0.0001598,2]
[402517144,1768693839939,-174.61919141,0.0001598,2]
[402517145,1768693839949,-181.08010149,0.0001598,2]
[402517146,1768693839959,-162.380719,0.0001598,2]
[402517147,1768693839968,-187.78006525,0.0001598,2]
[402517148,1768693839978,-194.72792766,0.0001598,2]
[402517149,1768693839988,-201.93286099,0.0001598,2]
[402517150,1768693839998,-209.40437684,0.0001598,2]
[402517151,1768693840007,-217.15233878,0.0001598,2]
[402517152,1768693840017,-225.18697532,0.0001598,2]
[402517153,1768693840026,-233.51889341,0.0001598,2]
[402517155,1768693840036,-242.15909246,0.0001598,2]
[402517156,1768693840046,-445.202766,0.0001598,2]
[402517157,1768693840055,-251.11897888,0.0001598,2]
[402517158,1768693840065,-260.4103811,0.0001598,2]
[402517159,1768693840074,-270.0455652,0.0001598,2]
[402517160,1768693840085,-280.03725112,0.0001598,2]
[402517161,1768693840105,-290.39862941,0.0001598,2]
[402517162,1768693840116,-301.1433787,0.0001598,2]
[402517163,1768693840127,-1000.0,0.00016,2]
[402517164,1768693840137,-1041.66666667,0.00016068,2]
[402517165,1768693840146,-160.0,0.000161,2]
[402517166,1768693840156,-160.0,0.000161,2]
[402517167,1768693840166,-168.0,0.0001611,2]
[402517168,1768693840176,-3000.0,0.00016164,2]
[402517169,1768693840185,-153.0,0.00016164,2]
[402517170,1768693840196,-377.8688684,0.00016185,2]
[402517171,1768693840206,-755.7377368,0.00016185,2]
[402517201,1768693840593,-755.7377368,0.00016185,2]
[402517204,1768693840610,-377.8688684,0.00016185,2]
[402517206,1768693840620,-377.8688684,0.00016185,2]
[402517208,1768693840630,-377.8688684,0.00016185,2]
[402517210,1768693840640,-377.8688684,0.00016185,2]
[402517212,1768693840650,-377.8688684,0.00016185,2]
[402517214,1768693840659,-687.89085046,0.00016237,2]
[402517216,1768693840669,-371.81,0.00016238,2]
[402517218,1768693840678,-2230.315306,0.00016251,2]
[402517220,1768693840687,-687.89085043,0.00016262,2]
[402517222,1768693840698,-687.89085043,0.00016288,2]
[402517223,1768693840707,-434.62454095,0.00016299,2]
[402517226,1768693840717,-184.04956534,0.00016299,2]
[402517227,1768693840726,-160.0,0.000163,2]
[402517230,1768693840736,-160.0,0.000163,2]
[402517232,1768693840746,-151.0,0.000163,2]
[402517233,1768693840755,-2084.83,0.000163,2]
[402517236,1768693840765,-134848.9705734,0.000163,2]
[402517275,1768693841149,-387.66890692,0.00013845,7]
[402517278,1768693841178,-2830.22096454,0.00013845,7]
[402517280,1768693841187,-47986.83777279,0.000163,2]
[402517478,1768693843694,-4131.12882622,0.000163,2]
[402517745,1768693846558,-5603.08811105,0.000163,2]
[402519837,1768693899914,2978.4552376,0.00027397,120]
[402519838,1768693912857,151.13,0.00027397,120]
[402519839,1768693961936,-1011.24839514,0.00011547,2]
[402519840,1768693995687,-896.07,0.00012329,2]
[402519841,1768694038977,154.62,9.416e-05,2]
[402519842,1768694039373,173.94,9.752e-05,2]
[402519844,1768694432159,200.0,0.00024589,120]
[402519845,1768694522658,1444.0,0.00026137,120]
[402519849,1768694732113,200.0,0.00025888,120]
[402519851,1768694752803,-236.265,0.00013327,2]
[402519852,1768694752833,-173.28521255,0.00013461,2]
[402519853,1768694752863,-613.0,0.00013597,2]
[402519854,1768694752893,-300.0,0.00013597,2]
[402519855,1768694752928,-300.0,0.00013597,2]
[402519856,1768694752958,-1200.0,0.00013597,2]
[402519857,1768694752989,-500.0,0.00013598,2]
[402519858,1768694792125,200.0,0.00025295,120]
[402519872,1768694850084,500.0,0.00027397,120]
[402519873,1768694851124,200.0,0.00024713,120]
[402519874,1768694960812,10000.01,0.00012735,2]
[402519875,1768694971418,200.0,0.00024801,120]
[402519929,1768695032774,200.0,0.00025941,120]
[402519962,1768695033142,-184.04956534,0.00013497,2]
[402519964,1768695033152,-651.41900232,0.00013497,2]
[402519966,1768695033165,-300.0,0.00013497,2]
[402519968,1768695033175,-1200.0,0.00013497,2]
[402519970,1768695033187,-169.8195083,0.00013497,2]
[402519972,1768695033200,-37453.91180789,0.00013498,2]
[402519974,1768695033213,-63505.27191745,0.00013498,2]
[402520320,1768695038223,481.67561,0.00027,120]
[402520321,1768695038895,-899040.81627466,0.00013498,2]
[402520322,1768695038906,-612.0,0.00013498,2]
[402520323,1768695038916,-151.0,0.000135,2]
[402520324,1768695038926,-500.0,0.00013598,2]
[402520325,1768695038936,-525.65021,0.00013699,2]
[402520327,1768695038945,-1267.08456646,0.00013772,2]
[402520328,1768695038955,-499.08422533,0.0001382,2]
[402520329,1768695038964,-500.0,0.00013872,2]
[402520331,1768695038974,-200.0,0.00013993,2]
[402520332,1768695038987,-500.0,0.00013993,2]
[402520334,1768695038999,-500.0,0.00013993,2]
[402520335,1768695039009,-216.87484314,0.00013993,2]
[402520338,1768695039019,-100000.0,0.00014006,2]
[402520339,1768695039030,-500.0,0.0001413,2]
[402520342,1768695039040,-500.0,0.0001413,2]
[402520343,1768695039050,-500.0,0.00014267,2]
[402520345,1768695039060,-500.0,0.00014267,2]
[402520347,1768695039070,-163.51793902,0.00014267,2]
[402520349,1768695039080,-500.0,0.00014404,2]
[402520351,1768695039089,-500.0,0.00014404,2]
[402520353,1768695039099,-2007.62416369,0.00014438,2]
[402520355,1768695039109,-1267.08456643,0.00014482,2]
[402520357,1768695039119,-500.0,0.00014541,2]
[402520359,1768695039130,-500.0,0.00014541,2]
[402520361,1768695039140,-420.0,0.00014794,2]
[402520363,1768695039149,-480.0,0.00014846,2]
[402520365,1768695039159,-1000.0,0.00015,2]
[402520367,1768695039170,-10000.0,0.00015057,2]
[402520369,1768695039179,-10000.0,0.00015114,2]
[402520371,1768695039188,-10000.0,0.00015114,2]
[402520373,1768695039198,-10000.0,0.00015114,2]
[402520375,1768695039207,-2419.59,0.00015114,2]
[402520377,1768695039217,-1267.08456643,0.00015192,2]
[402520379,1768695039227,-1041.66666667,0.0001531,2]
[402520381,1768695039236,-377.8688684,0.00015441,2]
[402520383,1768695039245,-200.38701979,0.00015497,2]
[402520385,1768695039255,-162.380719,0.00015538,2]
[402520387,1768695039264,-162.380719,0.00015538,2]
[402520389,1768695039274,-168.3888056,0.00015538,2]
[402520391,1768695039283,-174.61919141,0.00015538,2]
[402520393,1768695039293,-181.08010149,0.00015538,2]
[402520395,1768695039303,-187.78006525,0.00015538,2]
[402520397,1768695039313,-194.72792766,0.00015538,2]
[402520399,1768695039322,-201.93286099,0.00015538,2]
[402520401,1768695039331,-209.40437684,0.00015538,2]
[402520403,1768695039341,-217.15233878,0.00015538,2]
[402520405,1768695039350,-225.18697532,0.00015538,2]
[402520407,1768695039359,-233.51889341,0.00015538,2]
[402520409,1768695039368,-242.15909246,0.00015538,2]
[402520411,1768695039378,-251.11897888,0.00015538,2]
[402520413,1768695039387,-260.4103811,0.00015538,2]
[402520415,1768695039396,-270.0455652,0.00015538,2]
[402520417,1768695039405,-280.03725112,0.00015538,2]
[402520419,1768695039416,-290.39862941,0.00015538,2]
[402520421,1768695039425,-301.1433787,0.00015538,2]
[402520423,1768695039435,-445.202766,0.00015538,2]
[402520424,1768695039444,-2150.738,0.00015538,2]
[402520427,1768695039454,-500.0,0.00015538,2]
[402520429,1768695039463,-3000.0,0.00015616,2]
[402520431,1768695039472,-1267.08456643,0.00015902,2]
[402520433,1768695039482,-3000.0,0.00016,2]
[402520434,1768695039492,-59297.1216076,0.00016,2]
[402520437,1768695039504,-3000.0,0.0001601,2]
[402520439,1768695039513,-3000.0,0.0001602,2]
[402520441,1768695039522,-168.0,0.00016029,2]
[402520443,1768695039531,-3000.0,0.0001603,2]
[402520445,1768695039540,-3000.0,0.0001604,2]
[402520447,1768695039549,-3000.0,0.0001605,2]
[402520449,1768695039559,-3000.0,0.0001606,2]
[402520451,1768695039568,-3000.0,0.0001607,2]
[402520453,1768695039578,-3000.0,0.0001608,2]
[402520454,1768695039587,-168.3888056,0.00016086,2]
[402520456,1768695039596,-461.67526834,0.00016086,2]
[402520458,1768695039606,-2230.315306,0.00016086,2]
[402520460,1768695039616,-3000.0,0.0001609,2]
[402520462,1768695039625,-5172.949211,0.000161,2]
[402520464,1768695039634,-168.0,0.00016157,2]
[402520466,1768695039643,-523.0,0.00016216,2]
[402520468,1768695039652,-926.2244599,0.00016249,2]
[402520470,1768695039662,-58951.01456595,0.000163,2]
[402520472,1768695039672,-168.0,0.00016375,2]
[402520474,1768695039682,-180.95,0.00016437,2]
[402520476,1768695039691,-364.29075177,0.00016438,3]
[402520478,1768695039700,-590.40738298,0.00016438,3]
[402520480,1768695039710,-500.0,0.00016438,3]
[402520482,1768695039720,-500.0,0.00016438,3]
[402520484,1768695039730,-644.00223298,0.00016438,3]
[402520486,1768695039740,-500.0,0.00016438,3]
[402520488,1768695039749,-500.0,0.00016438,3]
[402520490,1768695039758,-500.0,0.00016438,3]